[Event "Titled Tuesday Blitz November 14 Late 2023"]
[White "Burke, Paul"]
[Black "Floresvillar Gonzalez, Luis Migu"]
[WhiteFideId "2605767"]
[BlackFideId "5100542"]
[WhiteElo "1858"]
[BlackElo "2213"]
[Result "0-1"]
[Round "8"]
[TimeControl "180+1"]
[Date "2023.11.14"]
[WhiteClock "0:00:00"]
[BlackClock "0:00:34"]
[Board "113"]

1. e4 {[%clk 0:02:56]}  c6 {[%clk 0:02:58]} 2. d4 {[%clk 0:02:54]}  d5 {[%clk 0:02:58]} 3. Nc3 {[%clk 0:02:54]}  dxe4 {[%clk 0:02:58]} 4. f3 {[%clk 0:02:55]}  e3 {[%clk 0:02:55]} 5. Bxe3 {[%clk 0:02:53]}  Bf5 {[%clk 0:02:55]} 6. Bd3 {[%clk 0:02:49]}  Bxd3 {[%clk 0:02:55]} 7. Qxd3 {[%clk 0:02:49]}  e6 {[%clk 0:02:55]} 8. O-O-O {[%clk 0:02:49]}  Bb4 {[%clk 0:02:48]} 9. Nge2 {[%clk 0:02:47]}  Nf6 {[%clk 0:02:47]} 10. a3 {[%clk 0:02:37]}  Bd6 {[%clk 0:02:40]} 11. Ne4 {[%clk 0:02:32]}  Nxe4 {[%clk 0:02:39]} 12. fxe4 {[%clk 0:02:32]}  Nd7 {[%clk 0:02:38]} 13. e5 {[%clk 0:02:23]}  Be7 {[%clk 0:02:37]} 14. Ng3 {[%clk 0:02:17]}  Qa5 {[%clk 0:02:29]} 15. Ne4 {[%clk 0:02:09]}  O-O-O {[%clk 0:02:28]} 16. Qb3 {[%clk 0:01:49]}  Qb6 {[%clk 0:02:17]} 17. Qxb6 {[%clk 0:01:22]}  Nxb6 {[%clk 0:02:16]} 18. c3 {[%clk 0:01:18]}  Nc4 {[%clk 0:02:09]} 19. Bf2 {[%clk 0:00:59]}  b5 {[%clk 0:02:07]} 20. Rhe1 {[%clk 0:00:53]}  h6 {[%clk 0:02:01]} 21. Kc2 {[%clk 0:00:52]}  Bg5 {[%clk 0:01:59]} 22. Nxg5 {[%clk 0:00:48]}  hxg5 {[%clk 0:01:58]} 23. h3 {[%clk 0:00:48]}  g4 {[%clk 0:01:54]} 24. hxg4 {[%clk 0:00:39]}  Rh2 {[%clk 0:01:53]} 25. b3 {[%clk 0:00:29]}  Nxa3+ {[%clk 0:01:45]} 26. Kb2 {[%clk 0:00:29]}  Rxg2 {[%clk 0:01:41]} 27. Re2 {[%clk 0:00:23]}  b4 {[%clk 0:01:40]} 28. cxb4 {[%clk 0:00:23]}  Nb5 {[%clk 0:01:40]} 29. Rdd2 {[%clk 0:00:15]}  Nxd4 {[%clk 0:01:28]} 30. Bxd4 {[%clk 0:00:14]}  Rxe2 {[%clk 0:01:26]} 31. Rxe2 {[%clk 0:00:11]}  Rxd4 {[%clk 0:01:27]} 32. Rf2 {[%clk 0:00:11]}  Rd7 {[%clk 0:01:04]} 33. Kc3 {[%clk 0:00:11]}  Kd8 {[%clk 0:00:56]} 34. Rh2 {[%clk 0:00:09]}  Ke7 {[%clk 0:00:53]} 35. Rh7 {[%clk 0:00:08]}  g6 {[%clk 0:00:53]} 36. Kc4 {[%clk 0:00:02]}  Rd5 {[%clk 0:00:53]} 37. Rh8 {[%clk 0:00:00]}  a5 {[%clk 0:00:34]} 0-1


[Site "https://www.chess.com"]

[Event "Titled Tuesday Blitz November 14 Late 2023"]
[White "DAVIDHDZSTS"]
[Black "Ocelak, Jakub"]
[BlackFideId "23707933"]
[WhiteElo "1875"]
[BlackElo "2498"]
[Result "1/2-1/2"]
[Round "8"]
[TimeControl "180+1"]
[Date "2023.11.14"]
[WhiteClock "0:00:04"]
[BlackClock "0:00:15"]
[Board "114"]

1. d4 {[%clk 0:03:00]}  f5 {[%clk 0:02:57]} 2. Nc3 {[%clk 0:03:00]}  Nf6 {[%clk 0:02:56]} 3. Bg5 {[%clk 0:02:59]}  d6 {[%clk 0:02:56]} 4. Bxf6 {[%clk 0:02:25]}  exf6 {[%clk 0:02:53]} 5. e3 {[%clk 0:02:18]}  Nc6 {[%clk 0:02:50]} 6. Qf3 {[%clk 0:02:14]}  g6 {[%clk 0:02:42]} 7. Bb5 {[%clk 0:02:10]}  Bd7 {[%clk 0:02:40]} 8. Nge2 {[%clk 0:02:06]}  a6 {[%clk 0:02:39]} 9. Bc4 {[%clk 0:02:01]}  b5 {[%clk 0:02:38]} 10. Bd5 {[%clk 0:01:59]}  Nb4 {[%clk 0:02:29]} 11. Bxa8 {[%clk 0:01:50]}  Nxc2+ {[%clk 0:02:28]} 12. Kd2 {[%clk 0:01:49]}  Nxa1 {[%clk 0:02:29]} 13. Rxa1 {[%clk 0:01:47]}  Bh6 {[%clk 0:02:25]} 14. Bc6 {[%clk 0:01:38]}  O-O {[%clk 0:02:24]} 15. Qd5+ {[%clk 0:01:25]}  Kg7 {[%clk 0:02:20]} 16. Rc1 {[%clk 0:00:48]}  Bxc6 {[%clk 0:02:11]} 17. Qxc6 {[%clk 0:00:37]}  Re8 {[%clk 0:02:12]} 18. Nd5 {[%clk 0:00:34]}  Re4 {[%clk 0:01:55]} 19. Qxc7+ {[%clk 0:00:32]}  Qxc7 {[%clk 0:01:55]} 20. Rxc7+ {[%clk 0:00:32]}  Kf8 {[%clk 0:01:54]} 21. Nxf6 {[%clk 0:00:26]}  Re6 {[%clk 0:01:54]} 22. Nd5 {[%clk 0:00:21]}  g5 {[%clk 0:01:49]} 23. Rxh7 {[%clk 0:00:19]}  Bg7 {[%clk 0:01:48]} 24. Rh5 {[%clk 0:00:19]}  f4 {[%clk 0:01:47]} 25. exf4 {[%clk 0:00:19]}  gxf4 {[%clk 0:01:46]} 26. Nexf4 {[%clk 0:00:19]}  Re4 {[%clk 0:01:45]} 27. Rf5+ {[%clk 0:00:18]}  Ke8 {[%clk 0:01:43]} 28. Ne2 {[%clk 0:00:19]}  Bh6+ {[%clk 0:01:38]} 29. Kd3 {[%clk 0:00:18]}  Rh4 {[%clk 0:01:36]} 30. Nf6+ {[%clk 0:00:18]}  Ke7 {[%clk 0:01:34]} 31. Nd5+ {[%clk 0:00:19]}  Ke6 {[%clk 0:01:33]} 32. Ne3 {[%clk 0:00:07]}  Bxe3 {[%clk 0:01:31]} 33. fxe3 {[%clk 0:00:08]}  Kxf5 {[%clk 0:01:30]} 34. h3 {[%clk 0:00:09]}  Rh8 {[%clk 0:01:29]} 35. Ng3+ {[%clk 0:00:08]}  Kf6 {[%clk 0:01:27]} 36. Ne4+ {[%clk 0:00:08]}  Ke6 {[%clk 0:01:27]} 37. b3 {[%clk 0:00:07]}  Rg8 {[%clk 0:01:20]} 38. g3 {[%clk 0:00:06]}  a5 {[%clk 0:01:13]} 39. h4 {[%clk 0:00:06]}  d5 {[%clk 0:01:02]} 40. Nc5+ {[%clk 0:00:06]}  Ke7 {[%clk 0:00:58]} 41. Nb7 {[%clk 0:00:05]}  a4 {[%clk 0:00:54]} 42. h5 {[%clk 0:00:03]}  Rxg3 {[%clk 0:00:53]} 43. bxa4 {[%clk 0:00:03]}  bxa4 {[%clk 0:00:52]} 44. Nc5 {[%clk 0:00:04]}  a3 {[%clk 0:00:51]} 45. Nb3 {[%clk 0:00:03]}  Rh3 {[%clk 0:00:50]} 46. Nd2 {[%clk 0:00:04]}  Rxh5 {[%clk 0:00:49]} 47. Nb1 {[%clk 0:00:04]}  Rh2 {[%clk 0:00:48]} 48. Nxa3 {[%clk 0:00:05]}  Rxa2 {[%clk 0:00:47]} 49. Nb5 {[%clk 0:00:05]}  Ra5 {[%clk 0:00:43]} 50. Nc3 {[%clk 0:00:05]}  Kd6 {[%clk 0:00:41]} 51. Ne2 {[%clk 0:00:04]}  Ra3+ {[%clk 0:00:41]} 52. Nc3 {[%clk 0:00:05]}  Ke6 {[%clk 0:00:38]} 53. Kc2 {[%clk 0:00:05]}  Kf5 {[%clk 0:00:35]} 54. Kb2 {[%clk 0:00:05]}  Ra5 {[%clk 0:00:35]} 55. Kc2 {[%clk 0:00:05]}  Kg4 {[%clk 0:00:35]} 56. Kd3 {[%clk 0:00:05]}  Kf3 {[%clk 0:00:35]} 57. Kd2 {[%clk 0:00:04]}  Ra3 {[%clk 0:00:15]} 58. Kd3 {[%clk 0:00:04]} 1/2-1/2


[Site "https://www.chess.com"]

[Event "Titled Tuesday Blitz November 14 Late 2023"]
[White "Dahlgren, James Allen"]
[Black "Perry, Patrick"]
[WhiteFideId "22256873"]
[BlackFideId "30917727"]
[WhiteElo "2141"]
[BlackElo "2249"]
[Result "0-1"]
[Round "8"]
[TimeControl "180+1"]
[Date "2023.11.14"]
[WhiteClock "0:01:40"]
[BlackClock "0:02:27"]
[Board "115"]

1. e4 {[%clk 0:03:00]}  c5 {[%clk 0:03:00]} 2. c4 {[%clk 0:02:58]}  Nc6 {[%clk 0:02:58]} 3. Nc3 {[%clk 0:02:59]}  g6 {[%clk 0:02:57]} 4. f4 {[%clk 0:02:59]}  Bg7 {[%clk 0:02:57]} 5. Nf3 {[%clk 0:03:00]}  Nd4 {[%clk 0:02:57]} 6. d3 {[%clk 0:02:59]}  d6 {[%clk 0:02:56]} 7. Be3 {[%clk 0:02:59]}  e6 {[%clk 0:02:56]} 8. Be2 {[%clk 0:02:56]}  Ne7 {[%clk 0:02:56]} 9. O-O {[%clk 0:02:56]}  O-O {[%clk 0:02:55]} 10. h3 {[%clk 0:02:56]}  a6 {[%clk 0:02:55]} 11. a4 {[%clk 0:02:57]}  Rb8 {[%clk 0:02:55]} 12. g4 {[%clk 0:02:55]}  Nec6 {[%clk 0:02:54]} 13. Qd2 {[%clk 0:02:51]}  Nb3 {[%clk 0:02:52]} 14. Qe1 {[%clk 0:02:50]}  Nxa1 {[%clk 0:02:53]} 15. Qxa1 {[%clk 0:02:50]}  f5 {[%clk 0:02:52]} 16. g5 {[%clk 0:02:46]}  Nd4 {[%clk 0:02:49]} 17. Bxd4 {[%clk 0:02:41]}  cxd4 {[%clk 0:02:48]} 18. Nd1 {[%clk 0:02:37]}  e5 {[%clk 0:02:46]} 19. fxe5 {[%clk 0:02:36]}  dxe5 {[%clk 0:02:46]} 20. Nf2 {[%clk 0:02:36]}  fxe4 {[%clk 0:02:38]} 21. dxe4 {[%clk 0:02:35]}  d3 {[%clk 0:02:37]} 22. Nxd3 {[%clk 0:02:30]}  Bxh3 {[%clk 0:02:37]} 23. Rd1 {[%clk 0:02:19]}  Qc7 {[%clk 0:02:31]} 24. b3 {[%clk 0:02:07]}  Rbe8 {[%clk 0:02:30]} 25. Nb4 {[%clk 0:02:00]}  Bg4 {[%clk 0:02:30]} 26. Qc3 {[%clk 0:01:59]}  Bxf3 {[%clk 0:02:29]} 27. Bxf3 {[%clk 0:01:57]}  Qe7 {[%clk 0:02:29]} 28. Qd2 {[%clk 0:01:51]}  Rxf3 {[%clk 0:02:28]} 29. Nd5 {[%clk 0:01:50]}  Rg3+ {[%clk 0:02:26]} 30. Kh2 {[%clk 0:01:40]}  Qxg5 {[%clk 0:02:27]} 0-1


[Site "https://www.chess.com"]

[Event "Titled Tuesday Blitz November 14 Late 2023"]
[White "Feliz Dotel, Dewar Bienvenido"]
[Black "Clawitter, Craig"]
[WhiteFideId "6402801"]
[BlackFideId "2023105"]
[WhiteElo "2115"]
[BlackElo "2253"]
[Result "0-1"]
[Round "8"]
[TimeControl "180+1"]
[Date "2023.11.14"]
[WhiteClock "0:00:55"]
[BlackClock "0:00:16"]
[Board "117"]

1. d4 {[%clk 0:02:54]}  e6 {[%clk 0:03:00]} 2. e3 {[%clk 0:02:51]}  Nf6 {[%clk 0:02:58]} 3. Nf3 {[%clk 0:02:51]}  c5 {[%clk 0:02:57]} 4. dxc5 {[%clk 0:02:50]}  Bxc5 {[%clk 0:02:56]} 5. c4 {[%clk 0:02:48]}  O-O {[%clk 0:02:53]} 6. Be2 {[%clk 0:02:48]}  b6 {[%clk 0:02:53]} 7. O-O {[%clk 0:02:47]}  Bb7 {[%clk 0:02:53]} 8. a3 {[%clk 0:02:47]}  a5 {[%clk 0:02:53]} 9. b3 {[%clk 0:02:47]}  d5 {[%clk 0:02:42]} 10. cxd5 {[%clk 0:02:47]}  Nxd5 {[%clk 0:02:36]} 11. Bb2 {[%clk 0:02:46]}  Nd7 {[%clk 0:02:20]} 12. Nc3 {[%clk 0:02:45]}  Nxc3 {[%clk 0:02:16]} 13. Bxc3 {[%clk 0:02:46]}  Rc8 {[%clk 0:02:17]} 14. Bb2 {[%clk 0:02:45]}  Qe7 {[%clk 0:02:05]} 15. a4 {[%clk 0:02:43]}  Rfd8 {[%clk 0:02:03]} 16. Rc1 {[%clk 0:02:39]}  Ne5 {[%clk 0:01:58]} 17. Bd4 {[%clk 0:02:12]}  Nxf3+ {[%clk 0:01:50]} 18. Bxf3 {[%clk 0:02:13]}  e5 {[%clk 0:01:48]} 19. Bxc5 {[%clk 0:02:05]}  Rxd1 {[%clk 0:01:38]} 20. Bxe7 {[%clk 0:02:04]}  Rdxc1 {[%clk 0:01:21]} 21. Bxb7 {[%clk 0:01:33]}  Rxf1+ {[%clk 0:01:20]} 22. Kxf1 {[%clk 0:01:34]}  Rc7 {[%clk 0:01:20]} 23. Bd5 {[%clk 0:01:31]}  Rxe7 {[%clk 0:01:19]} 24. e4 {[%clk 0:01:31]}  Rc7 {[%clk 0:01:08]} 25. g4 {[%clk 0:01:29]}  Kf8 {[%clk 0:01:06]} 26. h4 {[%clk 0:01:29]}  f6 {[%clk 0:01:01]} 27. Ke2 {[%clk 0:01:22]}  Ke7 {[%clk 0:01:01]} 28. h5 {[%clk 0:01:22]}  Kd6 {[%clk 0:00:55]} 29. f4 {[%clk 0:01:16]}  exf4 {[%clk 0:00:50]} 30. Kf3 {[%clk 0:01:16]}  Ke5 {[%clk 0:00:49]} 31. Bc4 {[%clk 0:01:16]}  Rxc4 {[%clk 0:00:20]} 32. bxc4 {[%clk 0:01:16]}  g6 {[%clk 0:00:19]} 33. g5 {[%clk 0:00:55]}  fxg5 {[%clk 0:00:18]} 34. h6 {[%clk 0:00:55]}  Kd4 {[%clk 0:00:16]} 35. Kg4 {[%clk 0:00:52]}  Kxe4 {[%clk 0:00:16]} 36. Kxg5 {[%clk 0:00:52]}  f3 {[%clk 0:00:16]} 37. Kf6 {[%clk 0:00:53]}  f2 {[%clk 0:00:17]} 38. Kg7 {[%clk 0:00:54]}  f1=Q {[%clk 0:00:17]} 39. Kxh7 {[%clk 0:00:55]}  Qf5 {[%clk 0:00:17]} 40. Kg7 {[%clk 0:00:55]}  Qh5 {[%clk 0:00:17]} 41. h7 {[%clk 0:00:56]}  g5 {[%clk 0:00:17]} 42. h8=Q {[%clk 0:00:56]}  Qxh8+ {[%clk 0:00:16]} 43. Kxh8 {[%clk 0:00:57]}  g4 {[%clk 0:00:17]} 44. Kg7 {[%clk 0:00:58]}  Kd4 {[%clk 0:00:17]} 45. Kf6 {[%clk 0:00:59]}  Kxc4 {[%clk 0:00:16]} 46. Ke6 {[%clk 0:00:55]}  Kb4 {[%clk 0:00:16]} 0-1


[Site "https://www.chess.com"]

[Event "Titled Tuesday Blitz November 14 Late 2023"]
[White "Travadon, Loic"]
[Black "Tsukerman, Julia"]
[WhiteFideId "26092131"]
[BlackFideId "2621649"]
[WhiteElo "2176"]
[BlackElo "2142"]
[Result "1-0"]
[Round "8"]
[TimeControl "180+1"]
[Date "2023.11.14"]
[WhiteClock "0:01:00"]
[BlackClock "0:00:00"]
[Board "118"]

1. e4 {[%clk 0:02:59]}  c5 {[%clk 0:02:59]} 2. Nf3 {[%clk 0:02:55]}  d6 {[%clk 0:02:59]} 3. d4 {[%clk 0:02:53]}  cxd4 {[%clk 0:02:59]} 4. Nxd4 {[%clk 0:02:54]}  Nf6 {[%clk 0:02:58]} 5. Nc3 {[%clk 0:02:52]}  a6 {[%clk 0:02:58]} 6. Be2 {[%clk 0:02:51]}  e5 {[%clk 0:02:58]} 7. Nb3 {[%clk 0:02:49]}  Be6 {[%clk 0:02:58]} 8. Be3 {[%clk 0:02:50]}  Be7 {[%clk 0:02:55]} 9. Nd5 {[%clk 0:02:50]}  Bxd5 {[%clk 0:02:50]} 10. exd5 {[%clk 0:02:50]}  Nbd7 {[%clk 0:02:48]} 11. O-O {[%clk 0:02:45]}  O-O {[%clk 0:02:47]} 12. f4 {[%clk 0:02:45]}  Rc8 {[%clk 0:02:39]} 13. c3 {[%clk 0:02:42]}  exf4 {[%clk 0:02:01]} 14. Rxf4 {[%clk 0:02:37]}  Nb6 {[%clk 0:01:58]} 15. c4 {[%clk 0:02:30]}  Nfd7 {[%clk 0:01:49]} 16. Na5 {[%clk 0:02:20]}  Qc7 {[%clk 0:01:39]} 17. b4 {[%clk 0:02:13]}  Ne5 {[%clk 0:01:30]} 18. Rc1 {[%clk 0:02:11]}  Bg5 {[%clk 0:01:24]} 19. Re4 {[%clk 0:01:51]}  Bxe3+ {[%clk 0:01:14]} 20. Rxe3 {[%clk 0:01:51]}  Rfe8 {[%clk 0:01:04]} 21. Kh1 {[%clk 0:01:48]}  Qe7 {[%clk 0:00:52]} 22. Qd4 {[%clk 0:01:46]}  Nbd7 {[%clk 0:00:26]} 23. Nxb7 {[%clk 0:01:40]}  Rb8 {[%clk 0:00:25]} 24. Na5 {[%clk 0:01:38]}  Qg5 {[%clk 0:00:14]} 25. Rf1 {[%clk 0:01:28]}  Rxb4 {[%clk 0:00:12]} 26. Nc6 {[%clk 0:01:27]}  Rb7 {[%clk 0:00:10]} 27. h4 {[%clk 0:01:22]}  Qg6 {[%clk 0:00:05]} 28. Bd3 {[%clk 0:01:18]}  Qh5 {[%clk 0:00:03]} 29. Bc2 {[%clk 0:01:07]}  Rf8 {[%clk 0:00:03]} 30. Rf5 {[%clk 0:01:06]}  Qg4 {[%clk 0:00:00]} 31. Rfxe5 {[%clk 0:01:00]} 1-0


[Site "https://www.chess.com"]

[Event "Titled Tuesday Blitz November 14 Late 2023"]
[White "Desideri, Ricardo Maruchi"]
[Black "Mariia89"]
[WhiteFideId "2110440"]
[WhiteElo "1981"]
[BlackElo "2149"]
[Result "0-1"]
[Round "8"]
[TimeControl "180+1"]
[Date "2023.11.14"]
[WhiteClock "0:00:00"]
[BlackClock "0:00:03"]
[Board "119"]

1. e4 {[%clk 0:03:00]}  c6 {[%clk 0:02:59]} 2. d4 {[%clk 0:03:00]}  d5 {[%clk 0:03:00]} 3. e5 {[%clk 0:03:00]}  Bf5 {[%clk 0:02:59]} 4. h4 {[%clk 0:03:00]}  h5 {[%clk 0:02:59]} 5. Bd3 {[%clk 0:03:00]}  Bxd3 {[%clk 0:02:59]} 6. Qxd3 {[%clk 0:03:01]}  e6 {[%clk 0:02:59]} 7. Bg5 {[%clk 0:02:59]}  Be7 {[%clk 0:02:59]} 8. Nf3 {[%clk 0:02:58]}  c5 {[%clk 0:02:54]} 9. dxc5 {[%clk 0:02:54]}  Qa5+ {[%clk 0:02:46]} 10. c3 {[%clk 0:02:51]}  Qxc5 {[%clk 0:02:45]} 11. Nbd2 {[%clk 0:02:47]}  Nc6 {[%clk 0:02:35]} 12. O-O {[%clk 0:02:44]}  Bxg5 {[%clk 0:02:25]} 13. hxg5 {[%clk 0:02:36]}  Nge7 {[%clk 0:02:25]} 14. b4 {[%clk 0:02:33]}  Qb6 {[%clk 0:02:22]} 15. b5 {[%clk 0:02:33]}  Na5 {[%clk 0:02:17]} 16. a4 {[%clk 0:02:26]}  Rc8 {[%clk 0:02:07]} 17. Rac1 {[%clk 0:02:19]}  Qc7 {[%clk 0:01:20]} 18. Rfd1 {[%clk 0:02:06]}  Nf5 {[%clk 0:01:16]} 19. c4 {[%clk 0:02:03]}  Nxc4 {[%clk 0:01:03]} 20. Nxc4 {[%clk 0:02:02]}  dxc4 {[%clk 0:01:03]} 21. Qa3 {[%clk 0:01:45]}  Qe7 {[%clk 0:00:57]} 22. Qa2 {[%clk 0:01:23]}  Qc5 {[%clk 0:00:51]} 23. Nd2 {[%clk 0:01:06]}  c3 {[%clk 0:00:38]} 24. Ne4 {[%clk 0:00:38]}  Qxe5 {[%clk 0:00:38]} 25. Re1 {[%clk 0:00:23]}  Qd4 {[%clk 0:00:34]} 26. Rcd1 {[%clk 0:00:21]}  Qb4 {[%clk 0:00:31]} 27. g6 {[%clk 0:00:19]}  Qc4 {[%clk 0:00:07]} 28. gxf7+ {[%clk 0:00:17]}  Kxf7 {[%clk 0:00:08]} 29. Qc2 {[%clk 0:00:14]}  Rhe8 {[%clk 0:00:05]} 30. Rd7+ {[%clk 0:00:13]}  Re7 {[%clk 0:00:05]} 31. Ng5+ {[%clk 0:00:12]}  Kf8 {[%clk 0:00:04]} 32. Rxe7 {[%clk 0:00:08]}  Nxe7 {[%clk 0:00:04]} 33. Nxe6+ {[%clk 0:00:07]}  Kf7 {[%clk 0:00:03]} 34. Ng5+ {[%clk 0:00:00]}  Kg8 {[%clk 0:00:03]} 0-1


[Site "https://www.chess.com"]

[Event "Titled Tuesday Blitz November 14 Late 2023"]
[White "PapaieDudu"]
[Black "Smirnov, Timofey"]
[BlackFideId "24176427"]
[WhiteElo "2386"]
[BlackElo "2085"]
[Result "0-1"]
[Round "8"]
[TimeControl "180+1"]
[Date "2023.11.14"]
[WhiteClock "0:00:48"]
[BlackClock "0:00:05"]
[Board "121"]

1. e4 {[%clk 0:03:00]}  e5 {[%clk 0:02:59]} 2. Nf3 {[%clk 0:03:00]}  Nf6 {[%clk 0:02:59]} 3. Nc3 {[%clk 0:03:00]}  Bb4 {[%clk 0:02:59]} 4. Bc4 {[%clk 0:02:59]}  O-O {[%clk 0:02:58]} 5. Nxe5 {[%clk 0:02:54]}  Bxc3 {[%clk 0:02:45]} 6. dxc3 {[%clk 0:02:50]}  d6 {[%clk 0:02:40]} 7. Nxf7 {[%clk 0:02:45]}  Rxf7 {[%clk 0:02:40]} 8. Bxf7+ {[%clk 0:02:44]}  Kxf7 {[%clk 0:02:41]} 9. O-O {[%clk 0:02:45]}  Nc6 {[%clk 0:02:35]} 10. Bg5 {[%clk 0:02:43]}  Kg8 {[%clk 0:02:33]} 11. f4 {[%clk 0:02:40]}  Qf8 {[%clk 0:02:29]} 12. Qd3 {[%clk 0:02:39]}  h6 {[%clk 0:02:27]} 13. Bh4 {[%clk 0:02:39]}  Nd7 {[%clk 0:02:13]} 14. e5 {[%clk 0:02:32]}  Nc5 {[%clk 0:02:05]} 15. Qe3 {[%clk 0:02:31]}  Bf5 {[%clk 0:01:32]} 16. exd6 {[%clk 0:02:04]}  Qxd6 {[%clk 0:01:33]} 17. Rad1 {[%clk 0:02:04]}  Qf8 {[%clk 0:01:23]} 18. b4 {[%clk 0:02:02]}  Ne4 {[%clk 0:01:08]} 19. g4 {[%clk 0:02:02]}  Bxg4 {[%clk 0:00:59]} 20. Qxe4 {[%clk 0:02:02]}  Bxd1 {[%clk 0:00:59]} 21. Rxd1 {[%clk 0:02:03]}  Re8 {[%clk 0:00:54]} 22. Qc4+ {[%clk 0:02:03]}  Kh8 {[%clk 0:00:52]} 23. b5 {[%clk 0:02:03]}  Nd8 {[%clk 0:00:26]} 24. Qxc7 {[%clk 0:01:37]}  Ne6 {[%clk 0:00:26]} 25. Qxb7 {[%clk 0:01:27]}  Qxf4 {[%clk 0:00:25]} 26. Qd7 {[%clk 0:01:18]}  Qg4+ {[%clk 0:00:16]} 27. Bg3 {[%clk 0:01:18]}  Rd8 {[%clk 0:00:10]} 28. Qxd8+ {[%clk 0:01:14]}  Nxd8 {[%clk 0:00:11]} 29. Rxd8+ {[%clk 0:01:15]}  Kh7 {[%clk 0:00:11]} 30. Kf2 {[%clk 0:01:11]}  Qf5+ {[%clk 0:00:11]} 31. Kg2 {[%clk 0:01:10]}  Qf6 {[%clk 0:00:09]} 32. Rc8 {[%clk 0:01:04]}  Qb6 {[%clk 0:00:07]} 33. c4 {[%clk 0:01:03]}  Qe6 {[%clk 0:00:06]} 34. a4 {[%clk 0:00:51]}  Qxc8 {[%clk 0:00:05]} 35. c5 {[%clk 0:00:50]}  Qxc5 {[%clk 0:00:04]} 36. Bf2 {[%clk 0:00:50]}  Qxc2 {[%clk 0:00:04]} 37. a5 {[%clk 0:00:49]}  Qb3 {[%clk 0:00:03]} 38. b6 {[%clk 0:00:49]}  axb6 {[%clk 0:00:04]} 39. Bxb6 {[%clk 0:00:48]}  Qb5 {[%clk 0:00:03]} 40. Kg3 {[%clk 0:00:49]}  Kg8 {[%clk 0:00:03]} 41. h3 {[%clk 0:00:50]}  Kf7 {[%clk 0:00:03]} 42. h4 {[%clk 0:00:50]}  Ke8 {[%clk 0:00:04]} 43. Kg4 {[%clk 0:00:51]}  Kd7 {[%clk 0:00:04]} 44. h5 {[%clk 0:00:52]}  Kc8 {[%clk 0:00:03]} 45. Kh4 {[%clk 0:00:52]}  Kb7 {[%clk 0:00:04]} 46. Kg4 {[%clk 0:00:51]}  Ka6 {[%clk 0:00:04]} 47. Bd4 {[%clk 0:00:51]}  Qg5+ {[%clk 0:00:04]} 48. Kf3 {[%clk 0:00:51]}  Qxh5+ {[%clk 0:00:04]} 49. Ke4 {[%clk 0:00:51]}  Qg4+ {[%clk 0:00:04]} 50. Kd3 {[%clk 0:00:51]}  h5 {[%clk 0:00:04]} 51. Bf2 {[%clk 0:00:49]}  h4 {[%clk 0:00:04]} 52. Ke3 {[%clk 0:00:48]}  h3 {[%clk 0:00:05]} 0-1


[Site "https://www.chess.com"]

[Event "Titled Tuesday Blitz November 14 Late 2023"]
[White "Erigaisi Arjun"]
[Black "Nakamura, Hikaru"]
[WhiteFideId "35009192"]
[BlackFideId "2016192"]
[WhiteElo "3059"]
[BlackElo "3288"]
[Result "1-0"]
[Round "9"]
[TimeControl "180+1"]
[Date "2023.11.14"]
[WhiteClock "0:00:06"]
[BlackClock "0:00:01"]
[Board "1"]

1. c4 {[%clk 0:03:00]}  c6 {[%clk 0:02:55]} 2. Nf3 {[%clk 0:03:00]}  d5 {[%clk 0:02:55]} 3. cxd5 {[%clk 0:02:59]}  cxd5 {[%clk 0:02:53]} 4. d4 {[%clk 0:02:59]}  Nf6 {[%clk 0:02:47]} 5. Nc3 {[%clk 0:02:59]}  Nc6 {[%clk 0:02:47]} 6. Bf4 {[%clk 0:02:58]}  Bf5 {[%clk 0:02:46]} 7. Qb3 {[%clk 0:02:57]}  Na5 {[%clk 0:02:44]} 8. Qa4+ {[%clk 0:02:57]}  Bd7 {[%clk 0:02:44]} 9. Qc2 {[%clk 0:02:58]}  Nc6 {[%clk 0:02:42]} 10. e3 {[%clk 0:02:53]}  Rc8 {[%clk 0:02:38]} 11. h3 {[%clk 0:02:46]}  Ne4 {[%clk 0:02:25]} 12. Qb3 {[%clk 0:01:46]}  e6 {[%clk 0:02:08]} 13. Bd3 {[%clk 0:01:37]}  Na5 {[%clk 0:02:04]} 14. Qc2 {[%clk 0:01:37]}  Nxc3 {[%clk 0:01:56]} 15. bxc3 {[%clk 0:01:38]}  Bb4 {[%clk 0:01:56]} 16. O-O {[%clk 0:01:35]}  Bxc3 {[%clk 0:01:47]} 17. Rac1 {[%clk 0:01:30]}  Bxd4 {[%clk 0:01:45]} 18. Bc7 {[%clk 0:01:26]}  Rxc7 {[%clk 0:01:44]} 19. Qxc7 {[%clk 0:01:27]}  Qxc7 {[%clk 0:01:44]} 20. Rxc7 {[%clk 0:01:27]}  Bb6 {[%clk 0:01:44]} 21. Rcc1 {[%clk 0:01:24]}  f6 {[%clk 0:01:31]} 22. e4 {[%clk 0:01:22]}  dxe4 {[%clk 0:01:24]} 23. Bxe4 {[%clk 0:01:23]}  Ke7 {[%clk 0:01:24]} 24. Rfd1 {[%clk 0:01:17]}  g6 {[%clk 0:01:15]} 25. Nd2 {[%clk 0:01:05]}  Nc6 {[%clk 0:00:54]} 26. Nc4 {[%clk 0:00:59]}  Bc7 {[%clk 0:00:55]} 27. Rb1 {[%clk 0:00:56]}  Rb8 {[%clk 0:00:55]} 28. a4 {[%clk 0:00:54]}  f5 {[%clk 0:00:42]} 29. Bf3 {[%clk 0:00:53]}  e5 {[%clk 0:00:43]} 30. Bd5 {[%clk 0:00:51]}  b6 {[%clk 0:00:28]} 31. Re1 {[%clk 0:00:44]}  Kf6 {[%clk 0:00:24]} 32. Bxc6 {[%clk 0:00:41]}  Bxc6 {[%clk 0:00:25]} 33. Rbc1 {[%clk 0:00:41]}  Be8 {[%clk 0:00:20]} 34. Ne3 {[%clk 0:00:35]}  Bd6 {[%clk 0:00:21]} 35. Rcd1 {[%clk 0:00:33]}  Bc5 {[%clk 0:00:12]} 36. Nd5+ {[%clk 0:00:32]}  Ke6 {[%clk 0:00:12]} 37. Nc7+ {[%clk 0:00:29]}  Kf6 {[%clk 0:00:13]} 38. Nd5+ {[%clk 0:00:15]}  Ke6 {[%clk 0:00:12]} 39. Nc7+ {[%clk 0:00:16]}  Kf6 {[%clk 0:00:12]} 40. Nxe8+ {[%clk 0:00:11]}  Rxe8 {[%clk 0:00:12]} 41. Rd7 {[%clk 0:00:12]}  a5 {[%clk 0:00:12]} 42. Kf1 {[%clk 0:00:08]}  h5 {[%clk 0:00:10]} 43. f3 {[%clk 0:00:07]}  h4 {[%clk 0:00:10]} 44. Red1 {[%clk 0:00:04]}  Bd4 {[%clk 0:00:09]} 45. Rc1 {[%clk 0:00:04]}  Bc5 {[%clk 0:00:10]} 46. Rcd1 {[%clk 0:00:04]}  e4 {[%clk 0:00:11]} 47. Re1 {[%clk 0:00:04]}  Ke5 {[%clk 0:00:06]} 48. fxe4 {[%clk 0:00:04]}  fxe4 {[%clk 0:00:06]} 49. Ke2 {[%clk 0:00:04]}  Rc8 {[%clk 0:00:05]} 50. Rc1 {[%clk 0:00:04]}  Rf8 {[%clk 0:00:04]} 51. Rf1 {[%clk 0:00:04]}  Rc8 {[%clk 0:00:05]} 52. Rc1 {[%clk 0:00:05]}  Ke6 {[%clk 0:00:04]} 53. Rg7 {[%clk 0:00:04]}  Kf6 {[%clk 0:00:05]} 54. Rb7 {[%clk 0:00:05]}  Re8 {[%clk 0:00:04]} 55. Rf1+ {[%clk 0:00:04]}  Kg5 {[%clk 0:00:04]} 56. Rd7 {[%clk 0:00:04]}  Re5 {[%clk 0:00:04]} 57. Rff7 {[%clk 0:00:03]}  Bb4 {[%clk 0:00:04]} 58. Rc7 {[%clk 0:00:02]}  Bc5 {[%clk 0:00:04]} 59. Rfd7 {[%clk 0:00:03]}  Rf5 {[%clk 0:00:04]} 60. Rf7 {[%clk 0:00:04]}  Re5 {[%clk 0:00:05]} 61. Rcd7 {[%clk 0:00:04]}  Bb4 {[%clk 0:00:05]} 62. Rc7 {[%clk 0:00:04]}  Bd6 {[%clk 0:00:05]} 63. Rc6 {[%clk 0:00:05]}  Bb4 {[%clk 0:00:03]} 64. Rg7 {[%clk 0:00:05]}  Rd5 {[%clk 0:00:04]} 65. Rgxg6+ {[%clk 0:00:05]}  Kf5 {[%clk 0:00:05]} 66. Rcf6+ {[%clk 0:00:04]}  Ke5 {[%clk 0:00:05]} 67. Rg5+ {[%clk 0:00:05]}  Kxf6 {[%clk 0:00:06]} 68. Rxd5 {[%clk 0:00:06]}  Bc5 {[%clk 0:00:01]} 69. Rh5 {[%clk 0:00:06]} 1-0


[Site "https://www.chess.com"]